[Event "*** Titled Tuesday Blitz"]
[Site "Chess.com"]
[Date "2021.04.20"]
[Round "2"]
[White "twitchTriniCupid"]
[Black "PowerThinking2650"]
[Result "1-0"]
[WhiteElo "2226"]
[BlackElo "2408"]
[TimeControl "180+1"]
[EndTime "10:17:12 PDT"]
[Termination "twitchTriniCupid won by resignation"]

1. d4 {[%clk 0:03:00.9]} 1... Nf6 {[%clk 0:02:59.9]} 2. c4 {[%clk 0:03:01.1]}
2... g6 {[%clk 0:03:00]} 3. Nc3 {[%clk 0:03:01.3]} 3... Bg7 {[%clk 0:03:00.2]}
4. e4 {[%clk 0:03:00.7]} 4... d6 {[%clk 0:03:00.4]} 5. Bg5 {[%clk 0:03:00.9]}
5... O-O {[%clk 0:03:00.6]} 6. Qd2 {[%clk 0:03:00.9]} 6... Na6 {[%clk
0:02:58.5]} 7. f3 {[%clk 0:02:57.9]} 7... e5 {[%clk 0:02:58.2]} 8. d5 {[%clk
0:02:51.9]} 8... h6 {[%clk 0:02:46.5]} 9. Bxh6 {[%clk 0:02:40.5]} 9... Nxe4
{[%clk 0:02:44.5]} 10. Nxe4 {[%clk 0:02:39.2]} 10... Qh4+ {[%clk 0:02:44.3]} 11.
g3 {[%clk 0:02:35.7]} 11... Qxh6 {[%clk 0:02:44.2]} 12. Qxh6 {[%clk 0:01:41.8]}
12... Bxh6 {[%clk 0:02:45.1]} 13. a3 {[%clk 0:01:41.8]} 13... f5 {[%clk
0:02:43.6]} 14. Nc3 {[%clk 0:01:41.6]} 14... Bd7 {[%clk 0:02:42.7]} 15. Nge2
{[%clk 0:01:35.9]} 15... Nc5 {[%clk 0:02:38.1]} 16. Rd1 {[%clk 0:01:35.3]} 16...
Be3 {[%clk 0:02:32.6]} 17. Nc1 {[%clk 0:01:29.9]} 17... a5 {[%clk 0:02:25.4]}
18. Nd3 {[%clk 0:01:28.8]} 18... Nxd3+ {[%clk 0:02:21.5]} 19. Bxd3 {[%clk
0:01:28.5]} 19... Kg7 {[%clk 0:02:17]} 20. Ke2 {[%clk 0:01:27.9]} 20... Bd4
{[%clk 0:02:16.3]} 21. Rc1 {[%clk 0:01:25.6]} 21... b6 {[%clk 0:02:13]} 22. h4
{[%clk 0:01:18.5]} 22... a4 {[%clk 0:02:04.7]} 23. Rc2 {[%clk 0:01:16.2]} 23...
Rh8 {[%clk 0:02:00.7]} 24. Kf1 {[%clk 0:01:10.5]} 24... Kf6 {[%clk 0:02:00]} 25.
Kg2 {[%clk 0:01:09.8]} 25... Rh6 {[%clk 0:01:49.5]} 26. Ne2 {[%clk 0:01:09.4]}
26... Bc5 {[%clk 0:01:47.9]} 27. Ng1 {[%clk 0:01:03]} 27... Rah8 {[%clk
0:01:44.3]} 28. Nh3 {[%clk 0:01:01.9]} 28... Be3 {[%clk 0:01:37.4]} 29. Re2
{[%clk 0:00:56.8]} 29... f4 {[%clk 0:01:36.9]} 30. Ng5 {[%clk 0:00:52.9]} 30...
Rh5 {[%clk 0:01:20.8]} 31. Ne4+ {[%clk 0:00:38.5]} 31... Kg7 {[%clk 0:01:19.9]}
32. Bc2 {[%clk 0:00:30]} 32... Bd4 {[%clk 0:01:16.6]} 33. Bd3 {[%clk 0:00:29.6]}
33... fxg3 {[%clk 0:01:14.3]} 34. Nxg3 {[%clk 0:00:26.6]} 34... Rxh4 {[%clk
0:01:13.6]} 35. Rxh4 {[%clk 0:00:27.1]} 35... Rxh4 {[%clk 0:01:13.8]} 36. Ne4
{[%clk 0:00:18.4]} 36... Bf5 {[%clk 0:01:11.7]} 37. Kg3 {[%clk 0:00:17.9]} 37...
Rh1 {[%clk 0:01:08.9]} 38. Kg2 {[%clk 0:00:16.5]} 38... Rd1 {[%clk 0:01:06.4]}
39. Bc2 {[%clk 0:00:15.7]} 39... Rc1 {[%clk 0:01:06.4]} 40. Bd3 {[%clk
0:00:15.8]} 40... Bxe4 {[%clk 0:01:00.4]} 41. fxe4 {[%clk 0:00:14]} 41... Kf6
{[%clk 0:00:55.7]} 42. Rc2 {[%clk 0:00:13.3]} 42... Rd1 {[%clk 0:00:55]} 43. Be2
{[%clk 0:00:13.4]} 43... Rb1 {[%clk 0:00:55.1]} 44. Bd3 {[%clk 0:00:11.6]} 44...
Kg5 {[%clk 0:00:53.3]} 45. Kf3 {[%clk 0:00:10.4]} 45... Rf1+ {[%clk 0:00:52]}
46. Bxf1 {[%clk 0:00:09.3]} 46... Kf6 {[%clk 0:00:51.5]} 47. Bh3 {[%clk
0:00:09.5]} 47... Kg5 {[%clk 0:00:50.7]} 48. Bd7 {[%clk 0:00:09.2]} 48... Kf6
{[%clk 0:00:49.7]} 49. Bxa4 {[%clk 0:00:09.8]} 1-0

[Event "*** Titled Tuesday Blitz"]
[Site "Chess.com"]
[Date "2021.04.20"]
[Round "2"]
[White "xImpervious"]
[Black "Manukyan_Artak"]
[Result "0-1"]
[WhiteElo "2149"]
[BlackElo "2412"]
[TimeControl "180+1"]
[EndTime "10:17:12 PDT"]
[Termination "Manukyan_Artak won by resignation"]

1. e4 {[%clk 0:03:00.9]} 1... c6 {[%clk 0:02:58.2]} 2. d4 {[%clk 0:03:01]} 2...
d5 {[%clk 0:02:58.2]} 3. f3 {[%clk 0:03:01.5]} 3... Nf6 {[%clk 0:02:57.8]} 4. e5
{[%clk 0:03:01.2]} 4... Nfd7 {[%clk 0:02:58]} 5. f4 {[%clk 0:03:00.6]} 5... e6
{[%clk 0:02:57.7]} 6. Nf3 {[%clk 0:03:01.2]} 6... c5 {[%clk 0:02:57.9]} 7. c3
{[%clk 0:03:01.3]} 7... Nc6 {[%clk 0:02:58.1]} 8. Be3 {[%clk 0:02:57.7]} 8...
Qb6 {[%clk 0:02:55.5]} 9. Qd2 {[%clk 0:02:55.3]} 9... cxd4 {[%clk 0:02:51.1]}
10. Nxd4 {[%clk 0:02:56.2]} 10... Nxd4 {[%clk 0:02:50.7]} 11. Bxd4 {[%clk
0:02:57.1]} 11... Bc5 {[%clk 0:02:50.9]} 12. Na3 {[%clk 0:02:55.3]} 12... a6
{[%clk 0:02:46]} 13. b4 {[%clk 0:02:55.1]} 13... Bxd4 {[%clk 0:02:43.8]} 14.
Qxd4 {[%clk 0:02:56]} 14... O-O {[%clk 0:02:34.7]} 15. Bd3 {[%clk 0:02:53.4]}
15... g6 {[%clk 0:02:34.1]} 16. h4 {[%clk 0:02:42.1]} 16... Qxd4 {[%clk
0:02:19.8]} 17. cxd4 {[%clk 0:02:41.9]} 17... Nb6 {[%clk 0:02:17.2]} 18. Rc1
{[%clk 0:02:30.8]} 18... Bd7 {[%clk 0:02:14.7]} 19. Ke2 {[%clk 0:02:20.8]} 19...
Rfc8 {[%clk 0:02:08.1]} 20. Nc2 {[%clk 0:02:15.2]} 20... Bb5 {[%clk 0:02:04.7]}
21. Na1 {[%clk 0:02:13]} 21... Bxd3+ {[%clk 0:02:00.8]} 22. Kxd3 {[%clk
0:02:13.9]} 22... Rc4 {[%clk 0:01:54.9]} 23. a3 {[%clk 0:02:08.9]} 23... Rac8
{[%clk 0:01:54]} 24. Nb3 {[%clk 0:02:09]} 24... Rxc1 {[%clk 0:01:51.1]} 25. Rxc1
{[%clk 0:02:08.5]} 25... Rxc1 {[%clk 0:01:51.6]} 26. Nxc1 {[%clk 0:02:08]} 26...
Nc4 {[%clk 0:01:52.5]} 27. a4 {[%clk 0:02:06.4]} 27... Nb2+ {[%clk 0:01:52.6]}
28. Kc3 {[%clk 0:02:03.5]} 28... Nxa4+ {[%clk 0:01:53.5]} 29. Kb3 {[%clk
0:02:04.1]} 29... Nb6 {[%clk 0:01:31.9]} 30. Nd3 {[%clk 0:02:02.5]} 30... Nc4
{[%clk 0:01:14.4]} 31. Nc5 {[%clk 0:02:01.5]} 31... a5 {[%clk 0:01:13.4]} 32.
Nxb7 {[%clk 0:00:46.4]} 32... axb4 {[%clk 0:01:11.2]} 33. Nd6 {[%clk 0:00:46.4]}
33... Ne3 {[%clk 0:01:04.5]} 34. g3 {[%clk 0:00:42.9]} 34... Nf1 {[%clk
0:01:01.1]} 35. g4 {[%clk 0:00:42.3]} 35... Ne3 {[%clk 0:01:00.1]} 36. f5 {[%clk
0:00:25.1]} 36... gxf5 {[%clk 0:00:58.4]} 37. gxf5 {[%clk 0:00:26]} 37... Nxf5
{[%clk 0:00:54.5]} 38. Nxf5 {[%clk 0:00:17.9]} 38... exf5 {[%clk 0:00:55.4]} 39.
Kxb4 {[%clk 0:00:18.6]} 39... Kg7 {[%clk 0:00:44.9]} 40. Kc3 {[%clk 0:00:10.1]}
40... f6 {[%clk 0:00:45.1]} 41. e6 {[%clk 0:00:08.7]} 41... Kf8 {[%clk
0:00:43.2]} 42. Kb4 {[%clk 0:00:05]} 42... Ke7 {[%clk 0:00:42.8]} 43. Kc5 {[%clk
0:00:05.5]} 43... Kxe6 {[%clk 0:00:42.9]} 0-1

[Event "*** Titled Tuesday Blitz"]
[Site "Chess.com"]
[Date "2021.04.20"]
[Round "2"]
[White "maxip32"]
[Black "Kapibara_Warri0r"]
[Result "1-0"]
[WhiteElo "2525"]
[BlackElo "2232"]
[TimeControl "180+1"]
[EndTime "10:17:13 PDT"]
[Termination "maxip32 won by checkmate"]

1. e4 {[%clk 0:03:00.9]} 1... e5 {[%clk 0:02:59.7]} 2. Nf3 {[%clk 0:02:55]} 2...
Nc6 {[%clk 0:02:59.7]} 3. d4 {[%clk 0:02:48.6]} 3... exd4 {[%clk 0:02:53.1]} 4.
Nxd4 {[%clk 0:02:49.5]} 4... Nf6 {[%clk 0:02:46.1]} 5. Nxc6 {[%clk 0:02:49.1]}
5... bxc6 {[%clk 0:02:45.8]} 6. e5 {[%clk 0:02:49]} 6... Qe7 {[%clk 0:02:46.5]}
7. Qe2 {[%clk 0:02:49.2]} 7... Nd5 {[%clk 0:02:47.1]} 8. c4 {[%clk 0:02:49.7]}
8... Ba6 {[%clk 0:02:46.6]} 9. b3 {[%clk 0:02:49.4]} 9... g6 {[%clk 0:02:44.4]}
10. f4 {[%clk 0:02:36]} 10... Bg7 {[%clk 0:02:32.3]} 11. Qf2 {[%clk 0:02:35.6]}
11... Nb6 {[%clk 0:02:24.9]} 12. Bb2 {[%clk 0:02:26.2]} 12... d6 {[%clk
0:02:12.7]} 13. Be2 {[%clk 0:02:04.8]} 13... dxe5 {[%clk 0:01:46.6]} 14. O-O
{[%clk 0:02:02]} 14... Qe6 {[%clk 0:01:29]} 15. Qc5 {[%clk 0:01:16.4]} 15...
O-O-O {[%clk 0:01:14.5]} 16. fxe5 {[%clk 0:01:09.9]} 16... h5 {[%clk 0:01:10.6]}
17. Bf3 {[%clk 0:01:04.3]} 17... Bb7 {[%clk 0:01:07.1]} 18. a4 {[%clk
0:00:55.6]} 18... Kb8 {[%clk 0:01:05]} 19. a5 {[%clk 0:00:47.9]} 19... Nd7
{[%clk 0:01:00.5]} 20. Qb4 {[%clk 0:00:47.6]} 20... Bxe5 {[%clk 0:00:45.5]} 21.
a6 {[%clk 0:00:39.2]} 21... Nb6 {[%clk 0:00:43.6]} 22. Re1 {[%clk 0:00:20.4]}
22... c5 {[%clk 0:00:20.1]} 23. Qb5 {[%clk 0:00:17.1]} 23... Bd4+ {[%clk
0:00:16.8]} 24. Kf1 {[%clk 0:00:15.6]} 24... Qf5 {[%clk 0:00:12.9]} 25. axb7
{[%clk 0:00:11.8]} 25... Bxb2 {[%clk 0:00:09.9]} 26. Rxa7 {[%clk 0:00:11.8]}
26... Qd3+ {[%clk 0:00:04.6]} 27. Kg1 {[%clk 0:00:09.3]} 27... Bd4+ {[%clk
0:00:03.9]} 28. Kh1 {[%clk 0:00:09.6]} 28... Rhe8 {[%clk 0:00:02]} 29. Ra8+
{[%clk 0:00:09.8]} 29... Nxa8 {[%clk 0:00:01.7]} 30. bxa8=Q# {[%clk 0:00:10.7]}
1-0

[Event "*** Titled Tuesday Blitz"]
[Site "Chess.com"]
[Date "2021.04.20"]
[Round "2"]
[White "DeTimmerman"]
[Black "Koalaskakistis"]
[Result "1-0"]
[WhiteElo "2819"]
[BlackElo "2537"]
[TimeControl "180+1"]
[EndTime "10:17:16 PDT"]
[Termination "DeTimmerman won on time"]

1. b4 {[%clk 0:03:00.9]} 1... f5 {[%clk 0:02:58.2]} 2. Bb2 {[%clk 0:03:01]} 2...
d6 {[%clk 0:02:58.2]} 3. b5 {[%clk 0:03:01.6]} 3... e5 {[%clk 0:02:58.3]} 4. a4
{[%clk 0:03:02.5]} 4... Nf6 {[%clk 0:02:58.4]} 5. c4 {[%clk 0:03:03]} 5... g6
{[%clk 0:02:58.6]} 6. e3 {[%clk 0:03:03.6]} 6... Bg7 {[%clk 0:02:59]} 7. Nf3
{[%clk 0:03:04.3]} 7... O-O {[%clk 0:02:59.2]} 8. Be2 {[%clk 0:03:04.7]} 8... a5
{[%clk 0:02:54.2]} 9. O-O {[%clk 0:03:05]} 9... Nbd7 {[%clk 0:02:54.6]} 10. d4
{[%clk 0:03:04]} 10... e4 {[%clk 0:02:44.6]} 11. Nfd2 {[%clk 0:03:03.6]} 11...
h5 {[%clk 0:02:36.3]} 12. Nc3 {[%clk 0:03:03.4]} 12... h4 {[%clk 0:02:35.5]} 13.
f3 {[%clk 0:03:02.5]} 13... exf3 {[%clk 0:02:34.2]} 14. Bxf3 {[%clk 0:03:03.4]}
14... Qe7 {[%clk 0:02:31.1]} 15. Re1 {[%clk 0:03:02.9]} 15... Qf7 {[%clk
0:01:35.3]} 16. e4 {[%clk 0:02:45.9]} 16... fxe4 {[%clk 0:01:11.4]} 17. Ncxe4
{[%clk 0:02:46.8]} 17... Nxe4 {[%clk 0:01:08.8]} 18. Rxe4 {[%clk 0:02:38]} 18...
g5 {[%clk 0:00:53.9]} 19. Rxh4 {[%clk 0:02:36.3]} 19... Ne5 {[%clk 0:00:40.3]}
20. dxe5 {[%clk 0:02:32.3]} 20... gxh4 {[%clk 0:00:40.2]} 21. Qe2 {[%clk
0:02:03.9]} 21... Be6 {[%clk 0:00:33.2]} 22. Bxb7 {[%clk 0:01:41.1]} 22... Rad8
{[%clk 0:00:31.9]} 23. Re1 {[%clk 0:01:35.5]} 23... dxe5 {[%clk 0:00:27.6]} 24.
h3 {[%clk 0:01:32]} 24... Qf2+ {[%clk 0:00:18.2]} 25. Qxf2 {[%clk 0:01:30.6]}
25... Rxf2 {[%clk 0:00:19.1]} 26. Kxf2 {[%clk 0:01:31.3]} 26... Rxd2+ {[%clk
0:00:19.5]} 27. Re2 {[%clk 0:01:29.4]} 27... Rxe2+ {[%clk 0:00:19.6]} 28. Kxe2
{[%clk 0:01:30.3]} 28... Bxc4+ {[%clk 0:00:20.4]} 29. Ke3 {[%clk 0:01:26.1]}
29... Bb3 {[%clk 0:00:20.2]} 30. Bc3 {[%clk 0:01:22.3]} 30... Bxa4 {[%clk
0:00:20.1]} 31. Bc6 {[%clk 0:01:23]} 31... Bf8 {[%clk 0:00:14.4]} 32. Bxa5
{[%clk 0:01:22.6]} 32... Bd6 {[%clk 0:00:11]} 33. Be1 {[%clk 0:01:16.8]} 33...
Kf7 {[%clk 0:00:06]} 34. Bxh4 {[%clk 0:01:16.3]} 34... Bb3 {[%clk 0:00:03.7]}
35. g4 {[%clk 0:01:10.8]} 35... Bc4 {[%clk 0:00:03.4]} 36. Bg3 {[%clk
0:01:08.2]} 36... Bf1 {[%clk 0:00:03.7]} 37. h4 {[%clk 0:01:06.7]} 37... Bh3
{[%clk 0:00:04.1]} 38. Bf3 {[%clk 0:01:02.4]} 38... Bf1 {[%clk 0:00:02.8]} 39.
h5 {[%clk 0:01:00.8]} 39... Bxb5 {[%clk 0:00:02.6]} 40. g5 {[%clk 0:00:58]}
40... Bc5+ {[%clk 0:00:02.8]} 41. Kd2 {[%clk 0:00:55.6]} 41... Bd4 {[%clk
0:00:03.1]} 42. Be4 {[%clk 0:00:53.9]} 42... Be8 {[%clk 0:00:02.7]} 43. h6
{[%clk 0:00:52.4]} 43... Kg8 {[%clk 0:00:01.7]} 44. Bh4 {[%clk 0:00:46.3]} 1-0

[Event "*** Titled Tuesday Blitz"]
[Site "Chess.com"]
[Date "2021.04.20"]
[Round "2"]
[White "Kislov_Oleg"]
[Black "sokidze"]
[Result "0-1"]
[WhiteElo "2507"]
[BlackElo "2746"]
[TimeControl "180+1"]
[EndTime "10:17:17 PDT"]
[Termination "sokidze won by resignation"]

1. e4 {[%clk 0:03:00.9]} 1... c5 {[%clk 0:02:59.8]} 2. Nf3 {[%clk 0:03:00.7]}
2... Nc6 {[%clk 0:03:00.2]} 3. c3 {[%clk 0:02:59.7]} 3... Nf6 {[%clk 0:02:58.2]}
4. e5 {[%clk 0:02:59.3]} 4... Nd5 {[%clk 0:02:58]} 5. d4 {[%clk 0:03:00.2]} 5...
cxd4 {[%clk 0:02:57.3]} 6. cxd4 {[%clk 0:03:00]} 6... d6 {[%clk 0:02:57.5]} 7.
Bc4 {[%clk 0:02:59.9]} 7... Nb6 {[%clk 0:02:45.4]} 8. Bb5 {[%clk 0:02:59.8]}
8... dxe5 {[%clk 0:02:45.6]} 9. Nxe5 {[%clk 0:02:59.8]} 9... Bd7 {[%clk
0:02:45.9]} 10. Nxd7 {[%clk 0:02:58.9]} 10... Qxd7 {[%clk 0:02:46.3]} 11. Nc3
{[%clk 0:02:58.7]} 11... Rd8 {[%clk 0:02:46]} 12. O-O {[%clk 0:02:46.1]} 12...
e6 {[%clk 0:02:46]} 13. Be3 {[%clk 0:02:31.9]} 13... Be7 {[%clk 0:02:46]} 14.
Qg4 {[%clk 0:02:30]} 14... O-O {[%clk 0:02:46]} 15. Rad1 {[%clk 0:02:19.6]}
15... Kh8 {[%clk 0:02:44.2]} 16. Qh5 {[%clk 0:02:05]} 16... Nd5 {[%clk
0:02:12.2]} 17. Bd3 {[%clk 0:02:00.2]} 17... g6 {[%clk 0:01:57.2]} 18. Qh3
{[%clk 0:01:59.4]} 18... Nxe3 {[%clk 0:01:40.8]} 19. fxe3 {[%clk 0:02:00.3]}
19... f5 {[%clk 0:01:40.5]} 20. Bb1 {[%clk 0:01:38.6]} 20... Bf6 {[%clk
0:01:33.8]} 21. d5 {[%clk 0:01:31.5]} 21... Bxc3 {[%clk 0:01:07.6]} 22. bxc3
{[%clk 0:01:20.8]} 22... exd5 {[%clk 0:01:07.7]} 23. e4 {[%clk 0:01:14.8]} 23...
Ne7 {[%clk 0:00:54.1]} 24. exd5 {[%clk 0:01:05.4]} 24... Qd6 {[%clk 0:00:40.2]}
25. c4 {[%clk 0:01:04.9]} 25... b5 {[%clk 0:00:35.5]} 26. Qc3+ {[%clk
0:00:59.7]} 26... Kg8 {[%clk 0:00:35.7]} 27. c5 {[%clk 0:00:49.2]} 27... Nxd5
{[%clk 0:00:32.4]} 28. Qd4 {[%clk 0:00:38.6]} 28... Qf6 {[%clk 0:00:32.1]} 29.
Bc2 {[%clk 0:00:35.7]} 29... Qxd4+ {[%clk 0:00:30]} 30. Rxd4 {[%clk 0:00:36.6]}
30... Nc7 {[%clk 0:00:15.2]} 31. Bb3+ {[%clk 0:00:34.8]} 31... Kg7 {[%clk
0:00:15.8]} 32. Rfd1 {[%clk 0:00:34.4]} 32... Rxd4 {[%clk 0:00:08.5]} 33. Rxd4
{[%clk 0:00:35.3]} 33... Rc8 {[%clk 0:00:05.4]} 34. Rd7+ {[%clk 0:00:35.1]}
34... Kf6 {[%clk 0:00:05.9]} 35. Rxh7 {[%clk 0:00:34.9]} 35... Ne6 {[%clk
0:00:05.2]} 36. Rxa7 {[%clk 0:00:33.1]} 36... Nxc5 {[%clk 0:00:05.5]} 37. Rb7
{[%clk 0:00:31.9]} 37... Nxb7 {[%clk 0:00:05.5]} 38. Kf2 {[%clk 0:00:29.9]}
38... Rc7 {[%clk 0:00:05.7]} 39. Ke3 {[%clk 0:00:28.8]} 39... Nc5 {[%clk
0:00:06.6]} 0-1

[Event "*** Titled Tuesday Blitz"]
[Site "Chess.com"]
[Date "2021.04.20"]
[Round "2"]
[White "JiiHart"]
[Black "Matensien"]
[Result "0-1"]
[WhiteElo "1993"]
[BlackElo "2374"]
[TimeControl "180+1"]
[EndTime "10:17:17 PDT"]
[Termination "Matensien won on time"]

1. e4 {[%clk 0:03:00.9]} 1... c5 {[%clk 0:03:00]} 2. Nf3 {[%clk 0:03:00.8]} 2...
g6 {[%clk 0:03:00.6]} 3. d4 {[%clk 0:03:01.4]} 3... cxd4 {[%clk 0:03:01.5]} 4.
Nxd4 {[%clk 0:03:01.9]} 4... Nc6 {[%clk 0:03:02.1]} 5. c4 {[%clk 0:03:02.1]}
5... Nf6 {[%clk 0:03:02.1]} 6. Nc3 {[%clk 0:03:00.9]} 6... d6 {[%clk 0:03:02.7]}
7. Be2 {[%clk 0:02:59.7]} 7... Bg7 {[%clk 0:03:02.5]} 8. Be3 {[%clk 0:02:59.8]}
8... O-O {[%clk 0:03:02.8]} 9. O-O {[%clk 0:03:00]} 9... Bd7 {[%clk 0:03:03.4]}
10. Qd2 {[%clk 0:02:55.7]} 10... Nxd4 {[%clk 0:03:03.3]} 11. Bxd4 {[%clk
0:02:55.6]} 11... Bc6 {[%clk 0:03:04.2]} 12. Bd3 {[%clk 0:02:55.5]} 12... a5
{[%clk 0:02:42.8]} 13. Rfe1 {[%clk 0:02:53.8]} 13... a4 {[%clk 0:02:36.6]} 14.
Rac1 {[%clk 0:02:52.3]} 14... Qa5 {[%clk 0:02:28.2]} 15. h4 {[%clk 0:02:04.6]}
15... a3 {[%clk 0:02:14.1]} 16. b3 {[%clk 0:02:03.9]} 16... h5 {[%clk
0:02:13.3]} 17. f3 {[%clk 0:01:51.8]} 17... Rfc8 {[%clk 0:02:05.7]} 18. Qe3
{[%clk 0:01:48.8]} 18... Qb4 {[%clk 0:01:39.3]} 19. Nd5 {[%clk 0:01:47]} 19...
Bxd5 {[%clk 0:01:32.3]} 20. exd5 {[%clk 0:01:47.9]} 20... Nxd5 {[%clk
0:01:28.8]} 21. Qf2 {[%clk 0:01:29.5]} 21... Nf4 {[%clk 0:01:25.6]} 22. Bxg7
{[%clk 0:01:26.2]} 22... Nxd3 {[%clk 0:01:19.5]} 23. Qe3 {[%clk 0:01:14.2]}
23... Qc5 {[%clk 0:00:29.9]} 24. Bd4 {[%clk 0:01:07]} 24... Qf5 {[%clk
0:00:29.8]} 25. Qh6 {[%clk 0:00:58.1]} 25... e5 {[%clk 0:00:26.8]} 26. Be3
{[%clk 0:00:48.2]} 26... Nxc1 {[%clk 0:00:25.5]} 27. Bxc1 {[%clk 0:00:36.7]}
27... d5 {[%clk 0:00:19.8]} 28. cxd5 {[%clk 0:00:16.7]} 28... Rc2 {[%clk
0:00:18.9]} 29. d6 {[%clk 0:00:05.3]} 29... Rxa2 {[%clk 0:00:16.8]} 30. Bg5
{[%clk 0:00:02]} 30... Qc2 {[%clk 0:00:10.8]} 0-1

[Event "*** Titled Tuesday Blitz"]
[Site "Chess.com"]
[Date "2021.04.20"]
[Round "2"]
[White "ChessLover0108"]
[Black "davidkalashian"]
[Result "0-1"]
[WhiteElo "2717"]
[BlackElo "2517"]
[TimeControl "180+1"]
[EndTime "10:17:18 PDT"]
[Termination "davidkalashian won on time"]

1. Nf3 {[%clk 0:03:00.9]} 1... Nf6 {[%clk 0:02:59.1]} 2. b3 {[%clk 0:03:00.9]}
2... e6 {[%clk 0:02:59]} 3. Bb2 {[%clk 0:03:01.1]} 3... d5 {[%clk 0:02:59.9]} 4.
e3 {[%clk 0:03:00.8]} 4... Be7 {[%clk 0:03:00.4]} 5. c4 {[%clk 0:03:00.9]} 5...
O-O {[%clk 0:03:00.4]} 6. d4 {[%clk 0:03:01.4]} 6... c5 {[%clk 0:02:50.7]} 7.
cxd5 {[%clk 0:02:59.6]} 7... Nxd5 {[%clk 0:02:50]} 8. Bd3 {[%clk 0:02:59.7]}
8... Nc6 {[%clk 0:02:48.9]} 9. O-O {[%clk 0:02:58.2]} 9... Bf6 {[%clk
0:02:48.1]} 10. Bb5 {[%clk 0:02:43.1]} 10... Bd7 {[%clk 0:02:34.7]} 11. Na3
{[%clk 0:02:35.4]} 11... cxd4 {[%clk 0:02:14.5]} 12. Nxd4 {[%clk 0:02:22.4]}
12... Nxd4 {[%clk 0:02:12.8]} 13. Bxd4 {[%clk 0:02:22.8]} 13... Bxb5 {[%clk
0:02:05.5]} 14. Nxb5 {[%clk 0:02:23.7]} 14... a6 {[%clk 0:02:05.2]} 15. Bxf6
{[%clk 0:02:22.6]} 15... Qxf6 {[%clk 0:02:00.3]} 16. Nd4 {[%clk 0:02:19.4]}
16... Rfd8 {[%clk 0:01:59.9]} 17. Qg4 {[%clk 0:02:11.7]} 17... Rac8 {[%clk
0:01:55.1]} 18. h3 {[%clk 0:02:06.2]} 18... g6 {[%clk 0:01:54.4]} 19. Rac1
{[%clk 0:02:05.3]} 19... h5 {[%clk 0:01:53.8]} 20. Qe4 {[%clk 0:01:56.6]} 20...
Qe7 {[%clk 0:01:33.3]} 21. Qe5 {[%clk 0:01:41]} 21... Qf6 {[%clk 0:01:26.9]} 22.
Qe4 {[%clk 0:01:34.9]} 22... Qe7 {[%clk 0:01:26.7]} 23. Qf3 {[%clk 0:01:35.5]}
23... Kg7 {[%clk 0:01:18.2]} 24. Rfd1 {[%clk 0:01:16.8]} 24... Nc3 {[%clk
0:01:09]} 25. Re1 {[%clk 0:00:24.9]} 25... Nxa2 {[%clk 0:01:08.3]} 26. Ra1
{[%clk 0:00:21.7]} 26... Nb4 {[%clk 0:01:07]} 27. Ra5 {[%clk 0:00:18.5]} 27...
Nc2 {[%clk 0:00:53.1]} 28. Rd1 {[%clk 0:00:15.4]} 28... Qb4 {[%clk 0:00:36.5]}
29. Ra4 {[%clk 0:00:13.4]} 29... Nxd4 {[%clk 0:00:35.8]} 30. exd4 {[%clk
0:00:13.4]} 30... Qb5 {[%clk 0:00:30.9]} 31. h4 {[%clk 0:00:06.7]} 31... Rd5
{[%clk 0:00:30.3]} 32. g3 {[%clk 0:00:06]} 32... Rc2 {[%clk 0:00:29.3]} 33. Qe3
{[%clk 0:00:01.3]} 33... Qc6 {[%clk 0:00:24.9]} 0-1

[Event "*** Titled Tuesday Blitz"]
[Site "Chess.com"]
[Date "2021.04.20"]
[Round "2"]
[White "Diaschess88"]
[Black "kubal123"]
[Result "1-0"]
[WhiteElo "2455"]
[BlackElo "2231"]
[TimeControl "180+1"]
[EndTime "10:17:19 PDT"]
[Termination "Diaschess88 won by resignation"]

1. d4 {[%clk 0:03:00.9]} 1... Nf6 {[%clk 0:02:59.7]} 2. c4 {[%clk 0:03:00.4]}
2... g6 {[%clk 0:02:58.7]} 3. Nc3 {[%clk 0:02:57.8]} 3... d5 {[%clk 0:02:58.8]}
4. Nf3 {[%clk 0:02:56.9]} 4... Bg7 {[%clk 0:02:58.6]} 5. Bg5 {[%clk 0:02:55.8]}
5... Ne4 {[%clk 0:02:57.7]} 6. cxd5 {[%clk 0:02:55]} 6... Nxg5 {[%clk
0:02:56.8]} 7. Nxg5 {[%clk 0:02:55.9]} 7... e6 {[%clk 0:02:56.9]} 8. Qd2 {[%clk
0:02:56.4]} 8... exd5 {[%clk 0:02:55.8]} 9. Qe3+ {[%clk 0:02:56.6]} 9... Kf8
{[%clk 0:02:55.1]} 10. Qf4 {[%clk 0:02:57.1]} 10... Bf6 {[%clk 0:02:42.2]} 11.
h4 {[%clk 0:02:56.3]} 11... h6 {[%clk 0:02:30.2]} 12. Nf3 {[%clk 0:02:54.4]}
12... Kg7 {[%clk 0:02:22.6]} 13. e3 {[%clk 0:02:53.4]} 13... c6 {[%clk
0:02:20.2]} 14. Bd3 {[%clk 0:02:53]} 14... h5 {[%clk 0:02:08.6]} 15. O-O-O
{[%clk 0:02:33.5]} 15... Nd7 {[%clk 0:02:02]} 16. e4 {[%clk 0:02:09.3]} 16...
Nf8 {[%clk 0:01:31.3]} 17. e5 {[%clk 0:02:06.6]} 17... Be7 {[%clk 0:01:30.7]}
18. Ng5 {[%clk 0:01:57.8]} 18... Bxg5 {[%clk 0:01:26.3]} 19. hxg5 {[%clk
0:01:58.7]} 19... Ne6 {[%clk 0:01:16]} 20. Qf6+ {[%clk 0:01:54.4]} 20... Qxf6
{[%clk 0:01:15.2]} 21. gxf6+ {[%clk 0:01:52.3]} 21... Kf8 {[%clk 0:01:12.1]} 22.
Ne2 {[%clk 0:01:52]} 22... Bd7 {[%clk 0:01:10.1]} 23. f4 {[%clk 0:01:51.5]}
23... c5 {[%clk 0:01:07.8]} 24. g4 {[%clk 0:01:46.2]} 24... Nxd4 {[%clk
0:00:54.5]} 25. Nxd4 {[%clk 0:01:42.9]} 25... cxd4 {[%clk 0:00:55.4]} 26. gxh5
{[%clk 0:01:40.5]} 26... Rxh5 {[%clk 0:00:50.5]} 27. Rxh5 {[%clk 0:01:39.3]}
27... gxh5 {[%clk 0:00:51.4]} 28. Be2 {[%clk 0:01:31.3]} 28... Rc8+ {[%clk
0:00:47.7]} 29. Kd2 {[%clk 0:01:31.5]} 29... Bf5 {[%clk 0:00:43.7]} 30. Bd3
{[%clk 0:01:28.9]} 30... Bg4 {[%clk 0:00:40.8]} 31. Re1 {[%clk 0:01:17.7]} 31...
Ke8 {[%clk 0:00:35.5]} 32. f5 {[%clk 0:00:57.4]} 32... Kf8 {[%clk 0:00:12.5]}
33. e6 {[%clk 0:00:43.9]} 33... a6 {[%clk 0:00:10.3]} 34. Re5 {[%clk 0:00:38.9]}
34... Rc5 {[%clk 0:00:07.1]} 35. Be4 {[%clk 0:00:29.4]} 35... b6 {[%clk
0:00:06.1]} 36. Bxd5 {[%clk 0:00:26]} 36... h4 {[%clk 0:00:05.2]} 37. e7+ {[%clk
0:00:25.6]} 37... Ke8 {[%clk 0:00:05]} 38. Bxf7+ {[%clk 0:00:25.7]} 1-0